fUSD/lending_fUSD_20260515
["ID","MTS","AMOUNT","RATE_DAILY","PERIOD"]
[422267681,1778775044000,-155.99656416,0.000205,18]
[422267663,1778775044000,-200.0,0.0002,2]
[422267659,1778775044000,-1058.15001842,0.0002,2]
[422267664,1778775044000,-2698.0,0.0002,2]
[422267665,1778775044000,-3629.0,0.0002,2]
[422267660,1778775044000,-52298.5789593,0.0002,2]
[422267666,1778775044000,-400.0,0.0002,2]
[422267744,1778775045000,-155.0,0.00021,2]
[422267742,1778775045000,-189.0,0.00021,2]
[422267747,1778775045000,-157.0,0.00021,2]
[422267745,1778775045000,-157.0,0.00021,2]
[422267738,1778775045000,-200.0,0.00021,2]
[422267736,1778775045000,-3409.17594098,0.00021,7]
[422267734,1778775045000,-1208.58873252,0.00021,2]
[422267737,1778775045000,-258.0,0.00021,2]
[422267735,1778775045000,-199.47026326,0.00021,2]
[422267740,1778775045000,-3629.0,0.00021,2]
[422267741,1778775045000,-525.0485446,0.00021,2]
[422267746,1778775045000,-157.0,0.00021,2]
[422267755,1778775045000,-497.85,0.00021411,2]
[422267759,1778775045000,-268.58058186,0.00021578,21]
[422267748,1778775045000,-157.0,0.00021,2]
[422267750,1778775045000,-497.85,0.00021096,2]
[422267757,1778775045000,-497.85,0.00021516,2]
[422267752,1778775045000,-1362.12,0.000212,2]
[422267733,1778775045000,-1882.0,0.00021,2]
[422267754,1778775045000,-497.85,0.00021306,2]
[422267758,1778775045000,-157.00138778,0.00021529,22]
[422267756,1778775045000,-9902.87572427,0.000215,2]
[422267751,1778775045000,-167.89,0.00021158,2]
[422267753,1778775045000,-497.85,0.00021201,2]
[422267761,1778775045000,-153.0,0.00021713,2]
[422267749,1778775045000,-157.0,0.00021,2]
[422267730,1778775045000,-6111.0,0.00021,2]
[422267728,1778775045000,-6111.0,0.00021,2]
[422267729,1778775045000,-15000.0,0.00021,2]
[422267707,1778775045000,-4955.9,0.00020548,2]
[422267708,1778775045000,-4955.9,0.00020548,2]
[422267705,1778775045000,-4955.9,0.00020548,2]
[422267706,1778775045000,-4955.9,0.00020548,2]
[422267709,1778775045000,-4955.9,0.00020548,2]
[422267713,1778775045000,-4955.9,0.00020548,2]
[422267715,1778775045000,-4955.9,0.00020548,2]
[422267714,1778775045000,-4955.9,0.00020548,2]
[422267711,1778775045000,-4955.9,0.00020548,2]
[422267712,1778775045000,-4955.9,0.00020548,2]
[422267719,1778775045000,-2000.0,0.00020699,2]
[422267720,1778775045000,-22954.00210992,0.000207,2]
[422267710,1778775045000,-4955.9,0.00020548,2]
[422267717,1778775045000,-4955.9,0.00020548,2]
[422267718,1778775045000,-21796.06,0.00020548,2]
[422267716,1778775045000,-4955.9,0.00020548,2]
[422267722,1778775045000,-497.85,0.00020991,2]
[422267721,1778775045000,-1973.35553362,0.000209,30]
[422267732,1778775045000,-500.0,0.00021,2]
[422267725,1778775045000,-166.0,0.00021,2]
[422267760,1778775045000,-497.85,0.0002162,2]
[422267724,1778775045000,-542.0,0.00021,2]
[422267726,1778775045000,-159.0,0.00021,2]
[422267723,1778775045000,-195.85268885,0.00020999,2]
[422267727,1778775045000,-15000.0,0.00021,2]
[422267731,1778775045000,-365.0,0.00021,2]
[422267762,1778775045000,-2000.0,0.00021718,2]
[422267739,1778775045000,-2698.0,0.00021,2]
[422267764,1778775045000,-2000.0,0.00021718,2]
[422267802,1778775045000,-2000.0,0.00021727,2]
[422267801,1778775045000,-2000.0,0.00021727,2]
[422267800,1778775045000,-2000.0,0.00021727,2]
[422267799,1778775045000,-2000.0,0.00021727,2]
[422267798,1778775045000,-2000.0,0.00021727,2]
[422267805,1778775045000,-2000.0,0.00021727,2]
[422267803,1778775045000,-2000.0,0.00021727,2]
[422267804,1778775045000,-2000.0,0.00021727,2]
[422267807,1778775045000,-5000.0,0.00021918,2]
[422267806,1778775045000,-497.85,0.0002183,2]
[422267811,1778775045000,-8393.88,0.0002192,2]
[422267814,1778775045000,-166.0,0.00022,2]
[422267797,1778775045000,-2000.0,0.00021727,2]
[422267812,1778775045000,-497.85,0.00021935,2]
[422267813,1778775045000,-542.0,0.00022,2]
[422267815,1778775045000,-159.0,0.00022,2]
[422267816,1778775045000,-365.0,0.00022,2]
[422267810,1778775045000,-500.0,0.00021918,2]
[422267817,1778775045000,-500.0,0.00022,2]
[422267821,1778775045000,-200.0,0.00022,2]
[422267820,1778775045000,-258.0,0.00022,2]
[422267819,1778775045000,-11709.58328555,0.00022,4]
[422267818,1778775045000,-1882.0,0.00022,2]
[422267822,1778775045000,-2698.0,0.00022,2]
[422267765,1778775045000,-2000.0,0.00021718,2]
[422267823,1778775045000,-3629.0,0.00022,2]
[422267808,1778775045000,-150.0,0.00021918,2]
[422267795,1778775045000,-497.85,0.00021725,2]
[422267809,1778775045000,-2456.57966566,0.00021918,2]
[422267789,1778775045000,-2000.0,0.00021724,2]
[422267763,1778775045000,-2000.0,0.00021718,2]
[422267766,1778775045000,-2000.0,0.00021718,2]
[422267796,1778775045000,-2000.0,0.00021727,2]
[422267771,1778775045000,-2000.0,0.00021718,2]
[422267769,1778775045000,-2000.0,0.00021718,2]
[422267777,1778775045000,-200.0,0.00021719,2]
[422267778,1778775045000,-200.0,0.00021719,2]
[422267773,1778775045000,-2000.0,0.00021718,2]
[422267781,1778775045000,-200.0,0.00021719,2]
[422267775,1778775045000,-2000.0,0.00021718,2]
[422267780,1778775045000,-200.0,0.00021719,2]
[422267767,1778775045000,-2000.0,0.00021718,2]
[422267776,1778775045000,-200.0,0.00021719,2]
[422267779,1778775045000,-200.0,0.00021719,2]
[422267783,1778775045000,-200.0,0.00021719,2]
[422267790,1778775045000,-2000.0,0.00021724,2]
[422267788,1778775045000,-2000.0,0.00021724,2]
[422267794,1778775045000,-2000.0,0.00021724,2]
[422267792,1778775045000,-2000.0,0.00021724,2]
[422267786,1778775045000,-2000.0,0.00021724,2]
[422267785,1778775045000,-2000.0,0.00021724,2]
[422267791,1778775045000,-2000.0,0.00021724,2]
[422267782,1778775045000,-200.0,0.00021719,2]
[422267793,1778775045000,-2000.0,0.00021724,2]
[422267784,1778775045000,-214.0,0.00021719,2]
[422267787,1778775045000,-2000.0,0.00021724,2]
[422267853,1778775046000,-154.0,0.00023,30]
[422267877,1778775046000,-154.0,0.00023,30]
[422267854,1778775046000,-154.0,0.00023,30]
[422267864,1778775046000,-154.0,0.00023,30]
[422267855,1778775046000,-154.0,0.00023,30]
[422267857,1778775046000,-154.0,0.00023,30]
[422267859,1778775046000,-154.0,0.00023,30]
[422267856,1778775046000,-154.0,0.00023,30]
[422267863,1778775046000,-154.0,0.00023,30]
[422267861,1778775046000,-154.0,0.00023,30]
[422267866,1778775046000,-154.0,0.00023,30]
[422267865,1778775046000,-154.0,0.00023,30]
[422267878,1778775046000,-154.0,0.00023,30]
[422267870,1778775046000,-154.0,0.00023,30]
[422267869,1778775046000,-154.0,0.00023,30]
[422267867,1778775046000,-154.0,0.00023,30]
[422267875,1778775046000,-154.0,0.00023,30]
[422267873,1778775046000,-154.0,0.00023,30]
[422267872,1778775046000,-154.0,0.00023,30]
[422267874,1778775046000,-154.0,0.00023,30]
[422267871,1778775046000,-154.0,0.00023,30]
[422267879,1778775046000,-154.0,0.00023,30]
[422267889,1778775046000,-159.0,0.00023,30]
[422267862,1778775046000,-154.0,0.00023,30]
[422267880,1778775046000,-154.0,0.00023,30]
[422267868,1778775046000,-154.0,0.00023,30]
[422267860,1778775046000,-154.0,0.00023,30]
[422267824,1778775046000,-450.0,0.00022,2]
[422267851,1778775046000,-166.0,0.00023,30]
[422267883,1778775046000,-159.0,0.00023,30]
[422267828,1778775046000,-497.90406695,0.0002204,2]
[422267826,1778775046000,-234.01,0.00022,2]
[422267825,1778775046000,-189.0,0.00022,2]
[422267827,1778775046000,-155.0,0.00022,2]
[422267830,1778775046000,-765.41,0.00022466,2]
[422267829,1778775046000,-1558.1,0.00022353,2]
[422267840,1778775046000,-542.0,0.00023,2]
[422267831,1778775046000,-1873.56,0.00022466,2]
[422267832,1778775046000,-35995.69229312,0.000225,2]
[422267833,1778775046000,-157.0,0.00022541,3]
[422267836,1778775046000,-2567.0,0.00022773,7]
[422267839,1778775046000,-2000.0,0.00022998,2]
[422267835,1778775046000,-522.0,0.00022773,7]
[422267838,1778775046000,-2456.57966566,0.00022831,2]
[422267834,1778775046000,-196.07178303,0.00022704,21]
[422267837,1778775046000,-838.0,0.00022773,7]
[422267841,1778775046000,-166.0,0.00023,2]
[422267843,1778775046000,-365.0,0.00023,2]
[422267844,1778775046000,-200.0,0.00023,30]
[422267852,1778775046000,-154.0,0.00023,30]
[422267846,1778775046000,-1882.0,0.00023,2]
[422267842,1778775046000,-159.0,0.00023,2]
[422267845,1778775046000,-500.0,0.00023,2]
[422267849,1778775046000,-345.0,0.00023,30]
[422267847,1778775046000,-210.0,0.00023,30]
[422267848,1778775046000,-200.0,0.00023,30]
[422267850,1778775046000,-200.0,0.00023,30]
[422267887,1778775046000,-159.0,0.00023,30]
[422267858,1778775046000,-154.0,0.00023,30]
[422267884,1778775046000,-159.0,0.00023,30]
[422267926,1778775046000,-150.0,0.00023712,2]
[422267921,1778775046000,-3630.0,0.00023488,2]
[422267917,1778775046000,-1273.818,0.00023488,2]
[422267916,1778775046000,-1354.0,0.00023488,2]
[422267922,1778775046000,-401.70812466,0.000235,2]
[422267920,1778775046000,-6052.0,0.00023488,2]
[422267918,1778775046000,-150.0,0.00023488,2]
[422267923,1778775046000,-1362.12,0.000235,7]
[422267925,1778775046000,-150.0,0.00023671,2]
[422267924,1778775046000,-272.31,0.00023615,2]
[422267928,1778775046000,-150.0,0.00023712,2]
[422267929,1778775046000,-150.0,0.00023712,2]
[422267931,1778775046000,-275.0,0.00023823,2]
[422267919,1778775046000,-1238.398,0.00023488,2]
[422267932,1778775046000,-150.0,0.00023823,2]
[422267934,1778775046000,-8393.88,0.00023841,2]
[422267933,1778775046000,-201.0,0.00023823,2]
[422267935,1778775046000,-926.0,0.00023854,2]
[422267936,1778775046000,-501.07,0.00023999,2]
[422267938,1778775046000,-571.05,0.00023999,2]
[422267937,1778775046000,-500.0,0.00023999,2]
[422267939,1778775046000,-542.0,0.00024,2]
[422267940,1778775046000,-166.0,0.00024,2]
[422267941,1778775046000,-159.0,0.00024,2]
[422267943,1778775046000,-500.0,0.00024,2]
[422267942,1778775046000,-365.0,0.00024,2]
[422267944,1778775046000,-1882.0,0.00024,2]
[422267882,1778775046000,-159.0,0.00023,30]
[422267930,1778775046000,-2456.57966566,0.00023744,2]
[422267927,1778775046000,-150.0,0.00023712,2]
[422267876,1778775046000,-154.0,0.00023,30]
[422267913,1778775046000,-155.67492755,0.000232,2]
[422267881,1778775046000,-162.0,0.00023,30]
[422267886,1778775046000,-159.0,0.00023,30]
[422267885,1778775046000,-159.0,0.00023,30]
[422267888,1778775046000,-159.0,0.00023,30]
[422267890,1778775046000,-159.0,0.00023,30]
[422267891,1778775046000,-159.0,0.00023,30]
[422267902,1778775046000,-4754.33510122,0.00023,2]
[422267901,1778775046000,-214.95940296,0.00023,30]
[422267915,1778775046000,-625.0,0.00023488,2]
[422267893,1778775046000,-159.0,0.00023,30]
[422267892,1778775046000,-159.0,0.00023,30]
[422267896,1778775046000,-159.0,0.00023,30]
[422267894,1778775046000,-159.0,0.00023,30]
[422267897,1778775046000,-159.0,0.00023,30]
[422267895,1778775046000,-159.0,0.00023,30]
[422267899,1778775046000,-200.0,0.00023,30]
[422267898,1778775046000,-159.0,0.00023,30]
[422267912,1778775046000,-155.0,0.00023,2]
[422267910,1778775046000,-3629.0,0.00023,2]
[422267907,1778775046000,-200.0,0.00023,2]
[422267914,1778775046000,-2326.77,0.00023212,2]
[422267905,1778775046000,-2373.91134611,0.00023,2]
[422267909,1778775046000,-2698.0,0.00023,2]
[422267906,1778775046000,-258.0,0.00023,2]
[422267904,1778775046000,-311277.04236771,0.00023,2]
[422267900,1778775046000,-363.0,0.00023,30]
[422267911,1778775046000,-189.0,0.00023,2]
[422267903,1778775046000,-1000.0,0.00023,14]
[422267984,1778775047000,-6678.40236706,0.00025,2]
[422267982,1778775047000,-2000.0,0.00025,2]
[422267981,1778775047000,-378.59630703,0.00025,2]
[422267987,1778775047000,-1808.00850147,0.00025,2]
[422267977,1778775047000,-1000.0,0.00024961,2]
[422267986,1778775047000,-210.17904466,0.00025,2]
[422267988,1778775047000,-540.0,0.00025,2]
[422267980,1778775047000,-162.54203541,0.00025,2]
[422267979,1778775047000,-176.0,0.00025,2]
[422267978,1778775047000,-542.60692728,0.00025,2]
[422267983,1778775047000,-1900.12908863,0.00025,2]
[422267985,1778775047000,-1128.36314486,0.00025,2]
[422268003,1778775047000,-2000.0,0.00025298,2]
[422267990,1778775047000,-3082.65079527,0.00025,2]
[422268000,1778775047000,-167.01962833,0.00025,2]
[422267992,1778775047000,-2127.06986416,0.00025,2]
[422268001,1778775047000,-234.01,0.00025187,7]
[422267998,1778775047000,-3643.87215205,0.00025,2]
[422267999,1778775047000,-190.12944582,0.00025,2]
[422267994,1778775047000,-214.95940296,0.00025,7]
[422267993,1778775047000,-5804.81379214,0.00025,2]
[422267995,1778775047000,-275.98746232,0.00025,2]
[422267997,1778775047000,-2699.91060419,0.00025,2]
[422267996,1778775047000,-213.81095167,0.00025,2]
[422267976,1778775047000,-512.0,0.00024959,2]
[422268012,1778775047000,-1570.72,0.00025786,2]
[422267989,1778775047000,-618.67725719,0.00025,2]
[422267972,1778775047000,-852.26,0.00024658,2]
[422267958,1778775047000,-4851.25,0.00024174,2]
[422267970,1778775047000,-1253.78,0.0002456,2]
[422267945,1778775047000,-1036.98591685,0.00024,2]
[422267946,1778775047000,-10593.2705128,0.00024,14]
[422267948,1778775047000,-1253.87965228,0.00024,2]
[422267947,1778775047000,-3600.0,0.00024,2]
[422267949,1778775047000,-258.0,0.00024,2]
[422267950,1778775047000,-200.0,0.00024,2]
[422267951,1778775047000,-2698.0,0.00024,2]
[422267953,1778775047000,-500.0,0.00024,2]
[422267963,1778775047000,-1253.78,0.00024556,2]
[422267955,1778775047000,-155.0,0.00024,2]
[422267952,1778775047000,-3629.0,0.00024,2]
[422267954,1778775047000,-189.0,0.00024,2]
[422267957,1778775047000,-1570.72,0.00024174,2]
[422267959,1778775047000,-169.29,0.00024182,2]
[422267956,1778775047000,-1759.68,0.00024174,2]
[422267962,1778775047000,-512.0,0.00024397,2]
[422267960,1778775047000,-2599.64318728,0.0002421,2]
[422267961,1778775047000,-1558.1,0.00024324,2]
[422267965,1778775047000,-1253.78,0.00024558,2]
[422267974,1778775047000,-151.0,0.00024658,2]
[422267973,1778775047000,-153.215055,0.00024658,2]
[422267975,1778775047000,-2456.57966566,0.00024658,2]
[422267964,1778775047000,-1253.78,0.00024556,2]
[422267969,1778775047000,-1253.78,0.0002456,2]
[422267967,1778775047000,-1253.78,0.00024558,2]
[422267971,1778775047000,-1000.0,0.00024658,2]
[422267966,1778775047000,-1253.78,0.00024558,2]
[422267968,1778775047000,-1253.79,0.0002456,2]
[422268013,1778775047000,-4851.25,0.00025786,2]
[422267991,1778775047000,-105610.57396544,0.00025,7]
[422268005,1778775047000,-167.89,0.0002539,2]
[422268039,1778775047000,-226.0,0.00026027,2]
[422268045,1778775047000,-1745.23,0.00026055,7]
[422268042,1778775047000,-1292.95,0.00026055,7]
[422268044,1778775047000,-1804.56,0.00026055,7]
[422268047,1778775047000,-577.63,0.00026055,7]
[422268040,1778775047000,-1811.59,0.00026055,7]
[422268050,1778775047000,-1727.23,0.00026084,2]
[422268046,1778775047000,-1287.86,0.00026055,7]
[422268043,1778775047000,-576.71,0.00026055,7]
[422268041,1778775047000,-1727.23,0.00026055,7]
[422268049,1778775047000,-1811.59,0.00026084,2]
[422268048,1778775047000,-512.0,0.00026082,3]
[422268051,1778775047000,-1292.95,0.00026084,2]
[422268055,1778775047000,-1287.86,0.00026084,2]
[422268053,1778775047000,-1804.56,0.00026084,2]
[422268056,1778775047000,-577.63,0.00026084,30]
[422268054,1778775047000,-1745.23,0.00026084,2]
[422268052,1778775047000,-576.71,0.00026084,30]
[422268058,1778775047000,-1727.23,0.00026113,2]
[422268061,1778775047000,-1804.56,0.00026113,2]
[422268060,1778775047000,-576.71,0.00026113,2]
[422268059,1778775047000,-1292.95,0.00026113,2]
[422268057,1778775047000,-1811.59,0.00026113,2]
[422268062,1778775047000,-1745.23,0.00026113,2]
[422268064,1778775047000,-577.63,0.00026113,2]
[422268063,1778775047000,-1287.86,0.00026113,2]
[422268011,1778775047000,-1759.68,0.00025786,2]
[422268038,1778775047000,-350.0,0.00026027,2]
[422268037,1778775047000,-350.0,0.00026027,2]
[422268065,1778775047000,-1811.59,0.00026142,7]
[422268032,1778775047000,-250.0,0.00026027,2]
[422268031,1778775047000,-577.63,0.00026027,2]
[422268010,1778775047000,-8393.88,0.00025761,7]
[422268007,1778775047000,-512.0,0.00025521,3]
[422268006,1778775047000,-6678.40236706,0.000255,2]
[422268002,1778775047000,-157.0,0.00025298,3]
[422268008,1778775047000,-150.0,0.00025565,2]
[422268009,1778775047000,-2456.57966566,0.00025571,2]
[422268014,1778775047000,-6678.40236706,0.000258,2]
[422268016,1778775047000,-40277.62527484,0.0002589,5]
[422268017,1778775047000,-608.54956322,0.0002599,2]
[422268025,1778775047000,-1727.23,0.00026027,2]
[422268021,1778775047000,-1362.12,0.00026,7]
[422268022,1778775047000,-219.24301899,0.00026,2]
[422268018,1778775047000,-5000.0,0.00026,2]
[422268004,1778775047000,-6678.40236706,0.000253,2]
[422268015,1778775047000,-214.95940296,0.000258,7]
[422268019,1778775047000,-6678.40236706,0.00026,2]
[422268034,1778775047000,-450.0,0.00026027,2]
[422268035,1778775047000,-450.0,0.00026027,2]
[422268033,1778775047000,-386.0,0.00026027,2]
[422268028,1778775047000,-1804.56,0.00026027,2]
[422268027,1778775047000,-576.71,0.00026027,2]
[422268036,1778775047000,-421.0,0.00026027,2]
[422268029,1778775047000,-1745.23,0.00026027,2]
[422268030,1778775047000,-1287.86,0.00026027,2]
[422268024,1778775047000,-1811.59,0.00026027,2]
[422268020,1778775047000,-4580.81237175,0.00026,2]
[422268026,1778775047000,-1292.95,0.00026027,2]
[422268023,1778775047000,-550.0,0.00026,2]
[422268074,1778775048000,-1727.23,0.00026171,7]
[422268097,1778775048000,-1811.59,0.00026257,2]
[422268098,1778775048000,-1727.23,0.00026257,2]
[422268094,1778775048000,-1745.23,0.00026229,7]
[422268101,1778775048000,-1804.56,0.00026257,2]
[422268106,1778775048000,-1727.23,0.00026286,2]
[422268104,1778775048000,-577.63,0.00026257,30]
[422268114,1778775048000,-6678.40236706,0.000263,2]
[422268103,1778775048000,-1287.86,0.00026257,2]
[422268107,1778775048000,-1292.95,0.00026286,2]
[422268095,1778775048000,-1287.86,0.00026229,7]
[422268108,1778775048000,-576.71,0.00026286,2]
[422268111,1778775048000,-1287.86,0.00026286,2]
[422268102,1778775048000,-1745.23,0.00026257,2]
[422268105,1778775048000,-1811.59,0.00026286,2]
[422268110,1778775048000,-1745.23,0.00026286,2]
[422268093,1778775048000,-1804.56,0.00026229,7]
[422268109,1778775048000,-1804.56,0.00026286,2]
[422268116,1778775048000,-1727.23,0.00026315,7]
[422268118,1778775048000,-576.71,0.00026315,7]
[422268115,1778775048000,-1811.59,0.00026315,7]
[422268117,1778775048000,-1292.95,0.00026315,7]
[422268121,1778775048000,-1287.86,0.00026315,7]
[422268122,1778775048000,-577.63,0.00026315,7]
[422268120,1778775048000,-1745.23,0.00026315,7]
[422268112,1778775048000,-577.63,0.00026286,2]
[422268092,1778775048000,-576.71,0.00026229,7]
[422268089,1778775048000,-1811.59,0.00026229,7]
[422268096,1778775048000,-577.63,0.00026229,7]
[422268123,1778775048000,-501.07,0.00026343,2]
[422268067,1778775048000,-1292.95,0.00026142,7]
[422268069,1778775048000,-1804.56,0.00026142,7]
[422268071,1778775048000,-1287.86,0.00026142,7]
[422268066,1778775048000,-1727.23,0.00026142,7]
[422268073,1778775048000,-1811.59,0.00026171,7]
[422268072,1778775048000,-577.63,0.00026142,7]
[422268068,1778775048000,-576.71,0.00026142,7]
[422268070,1778775048000,-1745.23,0.00026142,7]
[422268075,1778775048000,-1292.95,0.00026171,7]
[422268076,1778775048000,-576.71,0.00026171,30]
[422268078,1778775048000,-1745.23,0.00026171,7]
[422268080,1778775048000,-577.63,0.00026171,30]
[422268085,1778775048000,-1804.56,0.000262,2]
[422268086,1778775048000,-1745.23,0.000262,2]
[422268079,1778775048000,-1287.86,0.00026171,7]
[422268084,1778775048000,-576.71,0.000262,2]
[422268083,1778775048000,-1292.95,0.000262,2]
[422268082,1778775048000,-1727.23,0.000262,2]
[422268087,1778775048000,-1287.86,0.000262,2]
[422268081,1778775048000,-1811.59,0.000262,2]
[422268100,1778775048000,-576.71,0.00026257,30]
[422268099,1778775048000,-1292.95,0.00026257,2]
[422268088,1778775048000,-577.63,0.000262,2]
[422268090,1778775048000,-1727.23,0.00026229,7]
[422268091,1778775048000,-1292.95,0.00026229,7]
[422268077,1778775048000,-1804.56,0.00026171,7]
[422268113,1778775048000,-1558.1,0.00026296,2]
[422268126,1778775048000,-1811.59,0.00026344,7]
[422268162,1778775048000,-1811.59,0.00026459,2]
[422268156,1778775048000,-576.71,0.00026431,30]
[422268157,1778775048000,-1804.56,0.00026431,2]
[422268158,1778775048000,-1745.23,0.00026431,2]
[422268160,1778775048000,-577.63,0.00026431,30]
[422268159,1778775048000,-1287.86,0.00026431,2]
[422268164,1778775048000,-1292.95,0.00026459,2]
[422268172,1778775048000,-1727.23,0.00026488,7]
[422268163,1778775048000,-1727.23,0.00026459,2]
[422268174,1778775048000,-576.71,0.00026488,7]
[422268173,1778775048000,-1292.95,0.00026488,7]
[422268165,1778775048000,-576.71,0.00026459,2]
[422268155,1778775048000,-1292.95,0.00026431,2]
[422268171,1778775048000,-1811.59,0.00026488,7]
[422268166,1778775048000,-1804.56,0.00026459,2]
[422268167,1778775048000,-1745.23,0.00026459,2]
[422268169,1778775048000,-577.63,0.00026459,2]
[422268168,1778775048000,-1287.86,0.00026459,2]
[422268180,1778775048000,-1354.0,0.00026488,2]
[422268179,1778775048000,-625.0,0.00026488,2]
[422268176,1778775048000,-1745.23,0.00026488,7]
[422268177,1778775048000,-1287.86,0.00026488,7]
[422268178,1778775048000,-577.63,0.00026488,7]
[422268175,1778775048000,-1804.56,0.00026488,7]
[422268181,1778775048000,-830.754433,0.00026488,2]
[422268124,1778775048000,-500.0,0.00026343,2]
[422268170,1778775048000,-2456.57966566,0.00026484,2]
[422268152,1778775048000,-706.0,0.00026409,5]
[422268119,1778775048000,-1804.56,0.00026315,7]
[422268154,1778775048000,-1727.23,0.00026431,2]
[422268131,1778775048000,-1745.23,0.00026344,7]
[422268153,1778775048000,-1811.59,0.00026431,2]
[422268129,1778775048000,-576.71,0.00026344,30]
[422268134,1778775048000,-1811.59,0.00026373,2]
[422268136,1778775048000,-1292.95,0.00026373,2]
[422268132,1778775048000,-1287.86,0.00026344,7]
[422268128,1778775048000,-1292.95,0.00026344,7]
[422268133,1778775048000,-577.63,0.00026344,30]
[422268130,1778775048000,-1804.56,0.00026344,7]
[422268125,1778775048000,-571.05,0.00026343,2]
[422268135,1778775048000,-1727.23,0.00026373,2]
[422268138,1778775048000,-1804.56,0.00026373,2]
[422268137,1778775048000,-576.71,0.00026373,2]
[422268127,1778775048000,-1727.23,0.00026344,7]
[422268139,1778775048000,-1745.23,0.00026373,2]
[422268141,1778775048000,-577.63,0.00026373,2]
[422268161,1778775048000,-170.31709086,0.00026459,2]
[422268150,1778775048000,-1287.86,0.00026402,7]
[422268151,1778775048000,-577.63,0.00026402,7]
[422268148,1778775048000,-1804.56,0.00026402,7]
[422268146,1778775048000,-1292.95,0.00026402,7]
[422268149,1778775048000,-1745.23,0.00026402,7]
[422268144,1778775048000,-1811.59,0.00026402,7]
[422268145,1778775048000,-1727.23,0.00026402,7]
[422268147,1778775048000,-576.71,0.00026402,7]
[422268143,1778775048000,-27845.66932154,0.000264,2]
[422268142,1778775048000,-200.0,0.0002639,7]
[422268140,1778775048000,-1287.86,0.00026373,2]
[422268205,1778775049000,-1287.86,0.00026517,7]
[422268202,1778775049000,-576.71,0.00026517,30]
[422268203,1778775049000,-1804.56,0.00026517,7]
[422268204,1778775049000,-1745.23,0.00026517,7]
[422268206,1778775049000,-577.63,0.00026517,30]
[422268200,1778775049000,-1727.23,0.00026517,7]
[422268209,1778775049000,-1292.95,0.00026546,2]
[422268215,1778775049000,-494.0,0.00026569,2]
[422268212,1778775049000,-1745.23,0.00026546,2]
[422268211,1778775049000,-1804.56,0.00026546,2]
[422268220,1778775049000,-1804.63,0.00026575,7]
[422268214,1778775049000,-577.63,0.00026546,2]
[422268216,1778775049000,-1811.59,0.00026575,7]
[422268213,1778775049000,-1287.86,0.00026546,2]
[422268208,1778775049000,-1727.23,0.00026546,2]
[422268210,1778775049000,-576.71,0.00026546,2]
[422268199,1778775049000,-1811.59,0.00026517,7]
[422268187,1778775049000,-68.73418273,0.00026488,2]
[422268207,1778775049000,-1811.59,0.00026546,2]
[422268182,1778775049000,-153.215055,0.00024658,2]
[422268183,1778775049000,-171.42802471,0.00026488,2]
[422268185,1778775049000,-267.81754229,0.00026488,2]